bitfinex/quotes_SOLUSD_20250310
["timestamp","ask_amount","ask_price","bid_price","bid_amount"]
[1741627119863,220.96,119.68,119.67,1.7]
[1741627120275,220.96,119.68,119.66,1.7]
[1741627120767,220.96,119.68,119.58,181.73719774]
[1741627120768,220.96,119.68,119.67,74.11939774]
[1741627121066,220.96,119.68,119.67,1.7]
[1741627121269,301.73499774,119.68,119.67,1.7]
[1741627121457,301.73499774,119.68,119.66,1.7]
[1741627121763,220.96,119.68,119.67,0.063]
[1741627121965,320.3846466,119.68,119.67,0.063]
[1741627122268,229.3156,119.68,119.67,1.763]
[1741627122643,220.96,119.68,119.67,1.763]
[1741627122843,220.96,119.68,119.67,74.18239774]
[1741627123154,229.3156,119.68,119.67,1.763]
[1741627123348,301.73499774,119.68,119.67,0.063]
[1741627123741,320.3846466,119.68,119.67,0.063]
[1741627123960,301.73499774,119.68,119.67,0.063]
[1741627124161,220.96,119.68,119.67,1.763]
[1741627124748,220.96,119.68,119.67,21.763]
[1741627124955,229.3156,119.68,119.67,1.763]
[1741627125164,229.3156,119.68,119.67,0.063]
[1741627125464,301.73499774,119.68,119.67,0.063]
[1741627125766,320.3846466,119.68,119.67,0.063]
[1741627126146,335.96896974,119.68,119.67,0.063]
[1741627126362,335.6846466,119.68,119.67,0.063]
[1741627126743,18.64964886,119.67,119.63,1.7]
[1741627127071,244.6156,119.68,119.65,1.7]
[1741627127377,72.41939774,119.67,119.64,1.7]
[1741627127673,244.6156,119.68,119.63,1.7]
[1741627127851,317.03499774,119.68,119.66,1.7]
[1741627128055,72.41939774,119.67,119.66,1.7]
[1741627128372,220.96,119.68,119.67,1.7]
[1741627128580,220.96,119.68,119.67,74.11939774]
[1741627128866,221.11672682,119.68,119.67,1.7]
[1741627129162,18.933972,119.67,119.61,1.7]
[1741627129361,18.79181043,119.65,119.6,1.7]
[1741627129564,72.41939774,119.65,119.64,1.7]
[1741627129764,72.41939774,119.65,119.62,1.7]
[1741627129968,72.41939774,119.63,119.6,1.7]
[1741627130142,18.64964886,119.64,119.59,1.7]
[1741627130143,72.41939774,119.62,119.59,1.7]
[1741627130341,99.4288466,119.62,119.59,1.7]
[1741627130565,72.41939774,119.6,119.56,1.7]
[1741627130762,72.41939774,119.6,119.57,1.7]
[1741627130952,293.73939774,119.59,119.56,1.7]
[1741627131450,221.32,119.59,119.58,1.7]
[1741627131654,221.32,119.59,119.56,1.7]
[1741627131959,293.73939774,119.59,119.56,1.7]
[1741627132160,221.32,119.59,119.58,1.7]
[1741627132572,221.32,119.59,119.58,94.11939774]
[1741627132877,221.32,119.59,119.58,21.7]
[1741627133058,302.10129774,119.59,119.57,1.7]
[1741627133256,302.10129774,119.59,119.57,21.7]
[1741627133456,302.10129774,119.59,119.56,1.7]
[1741627133645,72.41939774,119.58,119.56,1.7]
[1741627133851,72.41939774,119.57,119.55,1.763]
[1741627134177,91.35336974,119.56,119.55,0.063]
[1741627134474,0.28432314,119.55,119.5,1.763]
[1741627134768,27.01224886,119.58,119.57,1.7]
[1741627134948,27.01224886,119.58,119.56,1.7]
[1741627135153,27.01224886,119.58,119.54,1.7]
[1741627135154,18.64964886,119.56,119.54,1.7]
[1741627135366,91.0690466,119.55,119.53,1.7]
[1741627135573,91.0690466,119.54,119.53,1.7]
[1741627136156,18.64964886,119.54,119.53,1.7]
[1741627136359,27.01504886,119.54,119.53,1.7]
[1741627136758,99.4344466,119.54,119.53,1.7]
[1741627136954,18.64964886,119.53,119.51,1.7]
[1741627137154,18.64964886,119.53,119.5,0.063]
[1741627137155,72.70372088,119.52,119.5,0.063]
[1741627137373,91.0690466,119.51,119.5,0.063]
[1741627137575,91.35336974,119.51,119.5,0.063]
[1741627137976,91.0690466,119.51,119.5,1.763]
[1741627138177,18.64964886,119.51,119.5,1.763]
[1741627138473,18.933972,119.51,119.5,0.063]
[1741627138691,18.933972,119.51,119.48,0.063]
[1741627138692,91.35336974,119.51,119.48,0.063]
[1741627138869,91.0690466,119.49,119.48,0.063]
[1741627139071,72.41939774,119.46,119.44,1.763]
[1741627139280,18.64964886,119.46,119.45,1.7]
[1741627139478,15.28,119.47,119.46,1.7]
[1741627139975,15.28,119.47,119.45,21.7]
[1741627139976,87.69939774,119.47,119.45,21.7]
[1741627140176,15.28,119.47,119.46,1.7]
[1741627140365,15.28,119.47,119.44,72.48239774]
[1741627140366,18.933972,119.46,119.44,1.763]
[1741627140677,91.0690466,119.45,119.44,1.763]
[1741627140884,91.0690466,119.45,119.44,0.063]
[1741627141191,18.64964886,119.45,119.44,0.063]
[1741627141483,91.35336974,119.45,119.44,0.063]
[1741627142064,23.6503,119.47,119.45,1.7]
[1741627142275,242.3625,119.49,119.48,1.7]
[1741627142276,312.65120817,119.49,119.48,1.7]
[1741627142475,240.08964886,119.49,119.48,1.7]
[1741627142683,221.44,119.49,119.48,1.7]
[1741627142878,221.44,119.49,119.48,21.7]
[1741627143080,229.8089,119.49,119.48,21.7]
[1741627143282,18.933972,119.48,119.46,1.7]
[1741627143580,221.44,119.49,119.48,1.7]
[1741627143780,221.44,119.49,119.48,21.7]
[1741627143977,248.45854886,119.49,119.48,1.7]
[1741627144282,18.933972,119.48,119.47,1.7]
[1741627144459,91.35336974,119.48,119.44,1.763]
[1741627144661,72.70372088,119.45,119.44,1.763]
[1741627144981,167.93855772,119.45,119.44,0.0001]
[1741627145167,18.933972,119.43,119.38,1.763]
[1741627145485,18.933972,119.43,119.4,1.7]
[1741627145683,0.14216157,119.4,119.38,1.763]
[1741627145897,312.99336974,119.39,119.38,0.063]
[1741627146483,321.36926974,119.39,119.38,0.063]
[1741627146886,312.7090466,119.39,119.38,1.763]
[1741627147070,321.36926974,119.39,119.38,0.063]
[1741627147983,240.573972,119.39,119.38,1.763]
[1741627148189,321.36926974,119.39,119.38,0.063]
[1741627148369,240.28964886,119.39,119.38,1.763]
[1741627148571,221.64,119.39,119.38,1.763]
[1741627148784,221.81193254,119.39,119.38,1.763]
[1741627149097,221.81193254,119.39,119.38,74.18239774]
[1741627149389,0.17193254,119.39,119.38,165.50115931]
[1741627149685,0.18192467,119.41,119.4,21.7]
[1741627149894,0.18192467,119.41,119.4,166.68095705]
[1741627150186,0.17362769,119.42,119.41,1.84216157]
[1741627150383,0.17362769,119.42,119.41,165.43605931]
[1741627150587,0.17362769,119.42,119.41,165.29389774]
[1741627150792,0.17362769,119.42,119.41,74.11939774]
[1741627150966,0.17362769,119.42,119.41,82.49389774]
[1741627151166,0.15611629,119.45,119.41,82.49389774]
[1741627151167,0.15611629,119.45,119.43,21.84216157]
[1741627151371,0.15611629,119.45,119.43,96.26155931]
[1741627151570,0.15611629,119.45,119.43,94.26155931]
[1741627152089,0.15611629,119.45,119.43,21.7]
[1741627152387,0.15611629,119.45,119.43,1.7]
[1741627153109,91.22516289,119.45,119.43,1.7]
[1741627153415,18.64964886,119.43,119.41,1.7]
[1741627153573,91.0690466,119.43,119.42,1.7]
[1741627153771,0.14216157,119.43,119.41,1.7]
[1741627154075,0.14216157,119.43,119.42,1.7]
[1741627154383,0.15840116,119.44,119.43,1.7]
[1741627154564,0.15840116,119.44,119.43,30.0731]
[1741627154990,0.15840116,119.44,119.43,102.49249774]
[1741627155379,0.15840116,119.44,119.43,21.7]
[1741627155578,0.15840116,119.44,119.43,1.7]
[1741627155778,0.15840116,119.44,119.43,21.7]
[1741627155972,0.15840116,119.44,119.43,1.7]
[1741627156393,0.15840116,119.44,119.43,10.0731]
[1741627156578,0.15840116,119.44,119.43,74.11939774]
[1741627156776,0.15840116,119.44,119.43,1.7]
[1741627158493,0.15840116,119.44,119.43,84.77682088]
[1741627158696,0.15840116,119.44,119.43,103.42646974]
[1741627159004,0.15840116,119.44,119.43,82.55549774]
[1741627160070,0.15257295,119.46,119.44,0.14216157]
[1741627160277,4.785e-05,119.49,119.48,23.7]
[1741627160490,221.74,119.55,119.54,1.7]
[1741627160677,221.74,119.55,119.54,94.11939774]
[1741627160879,221.74,119.55,119.54,21.7]
[1741627161180,221.74,119.55,119.54,1.7]
[1741627161389,221.74,119.55,119.54,21.7]
[1741627162599,221.74,119.55,119.54,30.0654]
[1741627162897,221.74,119.55,119.54,1.7]
[1741627163301,230.1047,119.55,119.54,1.7]
[1741627163593,18.933972,119.54,119.52,1.7]
[1741627163894,0.14216157,119.51,119.5,1.7]
[1741627164110,72.56155931,119.51,119.49,1.7]
[1741627164309,72.41939774,119.5,119.49,1.7]
[1741627164488,80.92955931,119.51,119.49,1.7]
[1741627164696,0.14216157,119.49,119.48,1.7]
[1741627164999,0.14216157,119.49,119.44,1.7]
[1741627165000,313.01336974,119.49,119.44,1.7]
[1741627165200,72.41939774,119.46,119.44,1.7]
[1741627165373,72.56155931,119.46,119.45,1.7]
[1741627165579,72.56155931,119.46,119.44,21.7]
[1741627165989,72.56155931,119.46,119.45,1.7]
[1741627166188,72.56155931,119.46,119.44,20.0]
[1741627166189,0.14216157,119.45,119.44,1.7]
[1741627166700,80.93325931,119.45,119.43,0.063]
[1741627166895,187.95336974,119.44,119.43,0.063]
[1741627167095,18.79181043,119.43,119.38,1.763]
[1741627167399,71.91939774,119.4,119.38,1.763]
[1741627167612,221.68,119.4,119.38,1.763]
[1741627167787,72.56155931,119.39,119.38,1.763]
[1741627167989,72.41939774,119.39,119.38,0.063]
[1741627168194,221.68,119.4,119.38,0.063]
[1741627168388,221.68,119.4,119.39,1.7]
[1741627168389,240.47181043,119.4,119.39,1.7]
[1741627168589,240.47181043,119.4,119.38,0.063]
[1741627168590,27.16771043,119.39,119.38,0.063]
[1741627168910,99.75238631,119.39,119.38,0.063]
[1741627169693,80.96057588,119.39,119.38,1.763]
[1741627170002,8.68333971,119.39,119.38,1.763]
[1741627170207,0.16527814,119.39,119.38,1.763]
[1741627170383,91.51864788,119.39,119.38,0.063]
[1741627170587,99.89454788,119.39,119.38,0.063]
[1741627171210,8.68333971,119.39,119.38,1.763]
[1741627171391,76.10273745,119.39,119.38,0.063]
[1741627171709,91.21120817,119.39,119.38,0.063]
[1741627172194,18.79181043,119.38,119.36,0.38685531]
[1741627172395,72.41939774,119.37,119.36,0.38685531]
[1741627172607,99.58850817,119.37,119.36,0.38685531]
[1741627173293,8.3773,119.37,119.36,2.08685531]
[1741627173500,99.73066974,119.37,119.36,0.38685531]
[1741627173695,99.73066974,119.37,119.36,5.531e-05]
[1741627173913,99.73066974,119.37,119.36,2.508e-05]
[1741627174500,81.8,119.38,119.36,1.70002508]
[1741627174698,90.1768,119.38,119.36,1.70002508]
[1741627174897,221.83898138,119.4,119.39,1.7]
[1741627175094,221.83898138,119.4,119.38,1.7]
[1741627175095,230.21418138,119.4,119.38,1.7]
[1741627175295,72.70372088,119.39,119.36,1.70002508]
[1741627175515,0.28432314,119.37,119.36,2.508e-05]
[1741627175705,18.933972,119.37,119.36,2.508e-05]
[1741627176238,91.35336974,119.37,119.36,2.508e-05]
[1741627176596,100.733972,119.36,119.35,8.531e-05]
[1741627176796,173.15336974,119.36,119.35,8.531e-05]
[1741627178017,163.77276748,119.36,119.35,0.18655531]
[1741627178211,18.933972,119.35,119.34,0.14924531]
[1741627178519,105.79336974,119.35,119.34,0.14924531]
[1741627178815,114.17206974,119.35,119.34,0.14924531]
[1741627179018,114.17206974,119.35,119.34,1.84924531]
[1741627179220,95.23809774,119.35,119.34,1.84924531]
[1741627179401,95.23809774,119.35,119.34,0.14924531]
[1741627179613,95.23809774,119.35,119.34,4.531e-05]
[1741627179614,114.11206974,119.35,119.34,4.531e-05]
[1741627181014,95.17809774,119.35,119.34,1.70004531]
[1741627181229,86.73939774,119.37,119.35,1.7]
[1741627181518,72.70372088,119.36,119.34,4.531e-05]
[1741627181716,91.35336974,119.35,119.34,4.531e-05]
[1741627181929,173.15336974,119.35,119.34,4.531e-05]
[1741627182102,245.57276748,119.35,119.34,4.531e-05]
[1741627182302,173.15336974,119.35,119.34,4.531e-05]
[1741627182539,18.933972,119.34,119.33,5.31e-05]
[1741627182831,163.77276748,119.34,119.33,5.31e-05]
[1741627183124,172.15216748,119.34,119.33,5.31e-05]
[1741627183329,172.15216748,119.34,119.29,1.7]
[1741627183535,0.14216157,119.29,119.27,1.7]
[1741627183758,0.14216157,119.29,119.25,0.063]
[1741627183759,18.933972,119.27,119.25,0.063]
[1741627183937,18.933972,119.27,119.12,7.76535531]
[1741627183938,18.933972,119.25,119.2,1.7]
[1741627184118,72.41939774,119.21,119.19,1.7]
[1741627184434,86.59939774,119.21,119.19,1.7]
[1741627184632,72.70372088,119.2,119.16,1.7]
[1741627184941,80.81019774,119.18,119.17,1.7]
[1741627185230,302.76949774,119.19,119.18,1.7]
[1741627185435,221.96,119.19,119.18,1.7]
[1741627186037,221.96,119.19,119.18,74.11939774]
[1741627186916,221.96,119.26,119.25,1.7]
[1741627187234,221.96,119.26,119.25,74.11939774]
[1741627187435,221.96,119.26,119.25,1.7]
[1741627187648,221.96,119.26,119.25,21.7]
[1741627188153,221.96,119.26,119.25,94.11939774]
[1741627188356,221.96,119.26,119.25,1.7]
[1741627188519,221.96,119.26,119.25,74.11939774]
[1741627188726,222.12055257,119.26,119.25,74.11939774]
[1741627189135,222.12055257,119.26,119.25,82.50509774]
[1741627189334,222.12055257,119.26,119.25,74.11939774]
[1741627189652,222.12055257,119.26,119.25,82.50509774]
[1741627189820,0.16055257,119.26,119.25,82.78942088]
[1741627190149,0.16809348,119.28,119.27,21.7]
[1741627190354,0.16809348,119.28,119.27,268.27276748]
[1741627190526,0.16809348,119.28,119.27,176.91939774]
[1741627190723,0.16809348,119.28,119.27,94.11939774]
[1741627190923,0.16809348,119.28,119.27,1.7]
[1741627191426,0.16809348,119.28,119.27,94.11939774]
[1741627191844,0.16809348,119.28,119.27,21.7]
[1741627192157,0.16809348,119.28,119.27,102.50369774]
[1741627192624,0.16809348,119.28,119.27,185.58802088]
[1741627192833,0.16809348,119.28,119.27,202.24244314]
[1741627193042,0.16809348,119.28,119.27,183.30847114]
[1741627193356,0.16809348,119.28,119.27,174.92417114]
[1741627194247,0.16809348,119.28,119.27,183.30847114]
[1741627194842,0.16809348,119.28,119.27,174.92417114]
[1741627195943,0.19809348,119.28,119.27,92.12417114]
[1741627196154,8.58169348,119.28,119.25,0.063]
[1741627196459,72.41939774,119.27,119.25,0.063]
[1741627197251,321.73836974,119.26,119.25,0.063]
[1741627198450,0.14216157,119.25,119.19,72.41939774]
[1741627198649,72.41939774,119.21,119.15,91.1923]
[1741627198839,72.41939774,119.2,119.13,8.3941]
[1741627199042,86.33939774,119.21,119.15,72.41939774]
[1741627199249,86.33939774,119.21,119.16,92.41939774]
[1741627199549,86.33939774,119.21,119.16,20.0]
[1741627199550,8.3892,119.2,119.16,20.0]
[1741627199736,72.56155931,119.19,119.12,0.32385531]
[1741627200060,72.56155931,119.19,119.14,72.41939774]
[1741627200534,72.41939774,119.17,119.12,0.32385531]
[1741627200737,294.45939774,119.16,119.12,0.32385531]
[1741627200946,86.33939774,119.15,119.12,0.32385531]
[1741627201140,72.41939774,119.14,119.12,0.32385531]
[1741627201327,8.3941,119.13,119.12,0.32385531]
[1741627201525,222.04,119.16,119.15,20.0]
[1741627201729,222.04,119.16,119.15,92.41939774]
[1741627202237,222.04,119.16,119.14,20.0]
[1741627202532,222.04,119.16,119.15,92.41939774]
[1741627203150,294.53939774,119.23,119.16,0.28432314]
[1741627203356,222.12,119.23,119.22,72.41939774]
[1741627203543,0.19809348,119.28,119.22,72.41939774]
[1741627203856,12.30886505,119.27,119.25,20.0]
[1741627204067,12.30886505,119.27,119.22,20.0]
[1741627204347,12.30886505,119.27,119.24,72.41939774]
[1741627204554,12.30886505,119.27,119.24,20.0]
[1741627204736,12.30886505,119.27,119.25,72.41939774]
[1741627204938,84.72826279,119.27,119.22,72.41939774]
[1741627205144,72.41939774,119.26,119.21,72.41939774]
[1741627205763,12.30886505,119.27,119.23,72.41939774]
[1741627205933,12.30886505,119.27,119.25,72.41939774]
[1741627206128,12.30886505,119.27,119.24,92.41939774]
[1741627206453,72.41939774,119.25,119.17,91.1912]
[1741627206660,72.56155931,119.23,119.17,155.21939774]
[1741627206836,72.41939774,119.22,119.17,155.21939774]
[1741627207036,0.14216157,119.23,119.18,72.41939774]
[1741627207037,222.1,119.21,119.18,72.41939774]
[1741627207862,222.1,119.21,119.2,72.41939774]
[1741627208650,222.26566831,119.21,119.2,91.35336974]
[1741627208836,0.16566831,119.21,119.2,155.21939774]
[1741627209045,0.16566831,119.21,119.19,20.0]
[1741627209356,8.55426831,119.21,119.18,72.41939774]
[1741627209551,0.16566831,119.21,119.18,80.80999774]
[1741627209759,0.16566831,119.21,119.18,72.41939774]
[1741627209941,0.16566831,119.21,119.19,72.41939774]
[1741627210269,0.14216157,119.2,119.15,0.063]
[1741627210445,72.56155931,119.18,119.15,0.063]
[1741627210650,72.41939774,119.18,119.15,0.063]
[1741627210953,222.12,119.19,119.15,8.4557]
[1741627211158,0.14216157,119.18,119.15,0.063]
[1741627211370,72.56155931,119.16,119.15,0.063]
[1741627211667,0.14216157,119.14,119.12,0.32385531]
[1741627212156,72.56155931,119.13,119.12,0.32385531]
[1741627212539,29.3746,119.15,119.12,0.32385531]
[1741627212846,222.18,119.15,119.13,72.41939774]
[1741627213036,72.72722762,119.21,119.14,72.41939774]
[1741627213235,72.72722762,119.21,119.17,20.0]
[1741627213236,0.16566831,119.21,119.17,20.0]
[1741627213474,0.16566831,119.21,119.2,20.0]
[1741627213647,0.16566831,119.21,119.2,28.3892]
[1741627213833,0.16566831,119.21,119.2,119.4582466]
[1741627214764,0.16566831,119.21,119.18,82.8]
[1741627214765,0.16566831,119.21,119.14,82.8]
[1741627214968,72.41939774,119.19,119.16,20.0]
[1741627215271,222.16,119.2,119.16,92.41939774]
[1741627215635,230.5499,119.2,119.15,92.41939774]
[1741627215841,72.56155931,119.19,119.13,72.41939774]
[1741627216048,0.14216157,119.19,119.14,72.41939774]
[1741627216255,222.16,119.2,119.15,72.41939774]
[1741627216459,230.5493,119.2,119.15,72.41939774]
[1741627216669,222.16,119.2,119.16,72.41939774]
[1741627216855,222.16,119.2,119.17,72.41939774]
[1741627217169,230.5493,119.2,119.16,92.41939774]
[1741627217538,222.16,119.2,119.17,72.41939774]
[1741627217871,222.16,119.2,119.17,80.81059774]
[1741627218067,222.16,119.2,119.18,72.41939774]
[1741627218382,72.56155931,119.19,119.11,72.74325305]
[1741627218549,72.41939774,119.16,119.11,72.74325305]
[1741627218866,72.41939774,119.17,119.12,72.74325305]
[1741627219171,0.14216157,119.18,119.12,0.32385531]
[1741627219472,20.0,119.16,119.12,0.32385531]
[1741627219763,0.14216157,119.13,119.12,0.32385531]
[1741627219984,80.81349774,119.13,119.12,0.32385531]
[1741627220263,80.95565931,119.13,119.12,0.32385531]
[1741627220572,20.14216157,119.1,119.09,0.25908531]
[1741627220744,333.57336974,119.1,119.09,0.77725593]
[1741627220944,405.99276748,119.1,119.09,0.77725593]
[1741627221291,313.57336974,119.1,119.09,0.77725593]
[1741627221469,313.57336974,119.1,119.08,6.531e-05]
[1741627221470,0.14216157,119.09,119.08,6.531e-05]
[1741627221766,38.933972,119.06,119.05,0.79326531]
[1741627221971,11.0958,119.08,119.05,1.17416124]
[1741627222175,13.92,119.09,119.05,73.59355898]
[1741627222378,86.33939774,119.09,119.05,1.17416124]
[1741627222549,13.92,119.09,119.05,1.17416124]
[1741627222747,94.73649774,119.09,119.05,1.17416124]
[1741627223051,72.41939774,119.08,119.05,1.17416124]
[1741627223254,72.41939774,119.07,119.05,1.17416124]
[1741627223475,22.3171,119.09,119.05,1.17416124]
[1741627223476,91.35336974,119.06,119.05,1.17416124]
[1741627223983,99.75246974,119.06,119.05,1.17416124]
[1741627224685,99.75246974,119.06,119.04,5.325e-05]
[1741627224686,18.933972,119.05,119.04,5.325e-05]
[1741627224843,38.933972,119.02,119.01,0.16618792]
[1741627225062,0.28432314,119.01,119.0,0.09971792]
[1741627225268,0.28432314,119.01,119.0,0.19943584]
[1741627225269,295.00372088,119.01,119.0,0.19943584]
[1741627225494,313.65336974,119.01,119.0,0.07977792]
[1741627225696,241.233972,119.01,119.0,0.07977792]
[1741627225875,222.58432314,119.01,119.0,0.07977792]
[1741627226082,303.40632088,119.01,119.0,0.07977792]
[1741627226397,322.05596974,119.01,119.0,0.07977792]
[1741627226697,303.40632088,119.01,119.0,0.07977792]
[1741627226998,335.99596974,119.01,119.0,0.07977792]
[1741627227199,0.28432314,118.99,118.98,0.06382792]
[1741627227370,91.35336974,118.99,118.98,0.12765584]
[1741627227567,72.70372088,118.99,118.98,0.12765584]
[1741627227874,20.28432314,118.96,118.95,0.05106792]
[1741627228098,20.28432314,118.96,118.94,0.05106792]
[1741627228099,82.08432314,118.95,118.87,72.41939774]
[1741627228272,72.41939774,118.91,118.88,0.36947929]
[1741627228472,73.42804525,118.9,118.88,0.36947929]
[1741627228662,0.17161558,118.89,118.88,0.36947929]
[1741627229182,0.17161558,118.89,118.88,73.5132014]
[1741627229402,0.17161558,118.89,118.88,20.36947929]
[1741627229696,0.17161558,118.89,118.88,73.5132014]
[1741627229903,0.17161558,118.89,118.88,92.4471734]
[1741627230201,0.15678257,118.93,118.91,38.64964886]
[1741627230403,0.15678257,118.93,118.91,18.64964886]
[1741627230704,0.15678257,118.93,118.91,20.0]
[1741627230901,0.15678257,118.93,118.89,73.14372211]
[1741627231072,0.28432314,118.9,118.88,0.36947929]
[1741627231268,222.5,118.89,118.88,0.36947929]
[1741627232177,295.64372211,118.89,118.88,0.36947929]
[1741627232377,222.5,118.89,118.88,0.36947929]
[1741627233284,222.5,118.89,118.88,20.36947929]
[1741627233500,222.5,118.89,118.88,93.5132014]
[1741627233804,222.5,118.89,118.88,0.36947929]
[1741627234010,222.5,118.89,118.88,20.36947929]
[1741627234394,222.5,118.89,118.88,93.5132014]
[1741627234584,222.5,118.89,118.88,101.9250014]
[1741627235086,0.15678257,118.93,118.88,205.6589734]
[1741627235306,0.15678257,118.93,118.92,185.22141622]
[1741627235600,0.15678257,118.93,118.92,267.73709308]
[1741627235915,0.15678257,118.93,118.92,175.94372211]
[1741627236213,0.15678257,118.93,118.88,104.19907929]
[1741627236381,0.15678257,118.93,118.92,93.14372211]
[1741627236795,0.15678257,118.93,118.92,20.0]
[1741627237308,0.15678257,118.93,118.91,73.14372211]
[1741627237513,0.15678257,118.93,118.92,20.0]
[1741627238381,0.15678257,118.93,118.92,93.14372211]
[1741627239303,0.15678257,118.93,118.92,268.02141622]
[1741627239689,0.15678257,118.93,118.92,267.87925465]
[1741627239892,0.15678257,118.93,118.92,268.02141622]
[1741627240091,0.15678257,118.93,118.92,278.28825465]
[1741627240296,0.15678257,118.93,118.92,276.28825465]
[1741627240699,0.15678257,118.93,118.92,276.43041622]
[1741627240904,0.15156848,118.94,118.93,20.933972]
[1741627241207,0.17628582,118.96,118.95,2.28432314]
[1741627241424,222.66,119.01,118.97,22.28432314]
[1741627241717,222.66,119.01,119.0,0.14216157]
[1741627241890,222.66,119.01,119.0,155.94372211]
[1741627242088,222.66,119.01,118.99,20.0]
[1741627242493,222.66,119.01,119.0,73.14372211]
[1741627242899,222.64,119.08,119.03,20.0]
[1741627243093,222.64,119.08,119.07,20.0]
[1741627243516,295.78372211,119.08,119.03,20.0]
[1741627243853,222.64,119.08,119.06,73.14372211]
[1741627243987,222.64,119.08,119.07,20.0]
[1741627244389,18.64964886,119.07,119.03,20.30647929]
[1741627244700,304.18142211,119.08,119.03,20.30647929]
[1741627244701,222.64,119.08,119.07,20.0]
[1741627245818,18.64964886,119.07,119.06,20.0]
[1741627246116,222.703,119.08,119.06,20.0]
[1741627246319,222.703,119.08,119.06,93.14372211]
[1741627246527,222.703,119.08,119.07,73.14372211]
[1741627246892,222.703,119.08,119.07,20.0]
[1741627247118,222.703,119.08,119.07,73.14372211]
[1741627248237,222.703,119.08,119.05,73.14372211]
[1741627248417,222.703,119.08,119.07,20.0]
[1741627248724,222.85526785,119.08,119.07,20.0]
[1741627249526,222.85526785,119.08,119.07,93.14372211]
[1741627250435,222.85526785,119.08,119.06,73.14372211]
[1741627250807,222.85526785,119.08,119.07,20.0]
[1741627251008,222.85526785,119.08,119.06,73.14372211]
[1741627251310,222.85526785,119.08,119.06,20.0]
[1741627251509,222.85526785,119.08,119.07,20.0]
[1741627251730,295.99898996,119.08,119.03,0.30647929]
[1741627251938,73.14372211,119.06,119.03,0.30647929]
[1741627252134,73.14372211,119.04,119.03,0.30647929]
[1741627252312,91.79337097,119.04,119.03,0.30647929]
[1741627252506,92.07769411,119.04,119.03,0.30647929]
[1741627253508,18.933972,119.03,118.96,73.14372211]
[1741627253710,73.14372211,118.99,118.98,20.0]
[1741627253941,222.52,118.99,118.98,20.0]
[1741627254306,222.52,118.99,118.98,93.14372211]
[1741627254837,222.52,118.99,118.97,20.0]
[1741627255036,222.52,118.99,118.98,93.14372211]
[1741627255612,222.52,118.99,118.97,20.0]
[1741627255839,222.52,118.99,118.98,146.28744422]
[1741627256139,222.52,118.99,118.98,73.14372211]
[1741627256315,222.52,118.99,118.96,73.14372211]
[1741627256514,222.52,118.99,118.98,73.14372211]
[1741627256710,222.52,118.99,118.97,20.0]
[1741627256930,222.52,118.99,118.98,73.14372211]
[1741627257124,222.52,118.99,118.97,20.0]
[1741627257319,222.52,118.99,118.96,73.14372211]
[1741627257835,222.52,118.99,118.98,0.03]
[1741627258133,241.31181043,118.99,118.98,0.03]
[1741627258344,236.46,118.99,118.98,0.03]
[1741627258509,336.94169411,118.99,118.98,0.03]
[1741627258710,18.933972,118.98,118.91,72.64372211]
[1741627258912,18.79181043,118.95,118.91,73.14372211]
[1741627259113,13.94,118.97,118.96,20.0]
[1741627259311,13.94,118.97,118.92,20.0]
[1741627259544,13.94,118.97,118.93,73.14372211]
[1741627259719,13.94,118.97,118.94,73.14372211]
[1741627259930,13.94,118.97,118.96,73.14372211]
[1741627260722,222.52,118.99,118.98,154.69214422]
[1741627260914,222.52,118.99,118.98,81.83274525]
[1741627261120,222.52,118.99,118.98,256.42611622]
[1741627261425,13.94,119.05,119.01,20.0]
[1741627261626,13.94,119.05,119.03,73.14372211]
[1741627261829,13.94,119.05,119.01,73.14372211]
[1741627262120,18.64964886,119.04,119.0,20.0]
[1741627262320,13.94,119.05,119.02,73.14372211]
[1741627262530,22.3399,119.05,119.0,20.0]